[Event "Early-Titled-Tuesday-Blitz-April-23-2024"]
[Site "Chess.com"]
[Date "2024.04.23"]
[Round "9"]
[White "Fjal"]
[Black "Ariadna_Atreides"]
[Result "1/2-1/2"]
[WhiteElo "2322"]
[BlackElo "2224"]
[TimeControl "180+1"]
[EndTime "9:50:52 PDT"]
[Termination "Game drawn - insufficient material"]

1. Nf3 {[%clk 0:02:39.4]} 1... Nf6 {[%clk 0:02:58.7]} 2. g3 {[%clk 0:02:37]}
2... d5 {[%clk 0:02:57.9]} 3. Bg2 {[%clk 0:02:37.9]} 3... Nbd7 {[%clk
0:02:57.4]} 4. O-O {[%clk 0:02:38]} 4... e5 {[%clk 0:02:56.9]} 5. c4 {[%clk
0:02:37.9]} 5... c6 {[%clk 0:02:51.5]} 6. e3 {[%clk 0:02:30.2]} 6... Bd6 {[%clk
0:02:46.6]} 7. d4 {[%clk 0:02:29.7]} 7... e4 {[%clk 0:02:45.5]} 8. Nfd2 {[%clk
0:02:30]} 8... h5 {[%clk 0:02:38.6]} 9. h4 {[%clk 0:02:29.3]} 9... Ng4 {[%clk
0:02:33.6]} 10. cxd5 {[%clk 0:02:24.2]} 10... cxd5 {[%clk 0:02:32.7]} 11. Nc3
{[%clk 0:02:24.1]} 11... Nxe3 {[%clk 0:01:59.5]} 12. fxe3 {[%clk 0:02:10.1]}
12... Bxg3 {[%clk 0:02:00]} 13. Ndxe4 {[%clk 0:01:28.9]} 13... dxe4 {[%clk
0:01:57.8]} 14. Nxe4 {[%clk 0:01:29.8]} 14... Qxh4 {[%clk 0:01:49.8]} 15. Nxg3
{[%clk 0:01:24.2]} 15... Qxg3 {[%clk 0:01:49.1]} 16. e4 {[%clk 0:01:17.1]} 16...
Nf6 {[%clk 0:01:39]} 17. Bf4 {[%clk 0:01:16.3]} 17... Qg4 {[%clk 0:01:28.7]} 18.
e5 {[%clk 0:01:05.4]} 18... Qxd1 {[%clk 0:01:07.4]} 19. Rfxd1 {[%clk 0:01:03.5]}
19... Ng4 {[%clk 0:01:08]} 20. Rac1 {[%clk 0:01:03.2]} 20... h4 {[%clk
0:01:04.2]} 21. Bh3 {[%clk 0:00:42.2]} 21... Bf5 {[%clk 0:00:29.8]} 22. Rc7
{[%clk 0:00:32.6]} 22... O-O {[%clk 0:00:22.4]} 23. d5 {[%clk 0:00:25.9]} 23...
g6 {[%clk 0:00:19.4]} 24. Rd2 {[%clk 0:00:18.5]} 24... Rac8 {[%clk 0:00:18.3]}
25. d6 {[%clk 0:00:17.6]} 25... Rxc7 {[%clk 0:00:16]} 26. dxc7 {[%clk
0:00:18.5]} 26... Rc8 {[%clk 0:00:15.8]} 27. Rd8+ {[%clk 0:00:18.1]} 27... Kg7
{[%clk 0:00:16.2]} 28. Bg2 {[%clk 0:00:16.5]} 28... Rxc7 {[%clk 0:00:14.6]} 29.
Bd5 {[%clk 0:00:14.6]} 29... Rc2 {[%clk 0:00:13.7]} 30. Rb8 {[%clk 0:00:09.8]}
30... Rxb2 {[%clk 0:00:13.2]} 31. Bg5 {[%clk 0:00:08.3]} 31... h3 {[%clk
0:00:10.5]} 32. Rxb7 {[%clk 0:00:06.3]} 32... h2+ {[%clk 0:00:08.9]} 33. Kh1
{[%clk 0:00:06.2]} 33... Rd2 {[%clk 0:00:08.5]} 34. Rxf7+ {[%clk 0:00:04.7]}
34... Kg8 {[%clk 0:00:06.5]} 35. Rxf5+ {[%clk 0:00:04.1]} 35... Rxd5 {[%clk
0:00:05.2]} 36. Rf1 {[%clk 0:00:04.2]} 36... Rd2 {[%clk 0:00:05]} 37. Bxd2
{[%clk 0:00:03.9]} 37... Nxe5 {[%clk 0:00:04]} 38. Kxh2 {[%clk 0:00:03.8]} 38...
g5 {[%clk 0:00:03.8]} 39. Kg3 {[%clk 0:00:04]} 39... g4 {[%clk 0:00:04.7]} 40.
Rf5 {[%clk 0:00:04.1]} 40... Nf3 {[%clk 0:00:05]} 41. Rxf3 {[%clk 0:00:03.9]}
41... gxf3 {[%clk 0:00:04.8]} 42. Kxf3 {[%clk 0:00:04.8]} 42... Kf7 {[%clk
0:00:04.8]} 43. Ke4 {[%clk 0:00:05.7]} 43... Ke7 {[%clk 0:00:05.5]} 44. Kd5
{[%clk 0:00:06.6]} 44... Kd7 {[%clk 0:00:06.1]} 45. Kc5 {[%clk 0:00:07.2]} 45...
Kc7 {[%clk 0:00:06.7]} 46. Kb5 {[%clk 0:00:08.1]} 46... Kb7 {[%clk 0:00:07.1]}
47. Ka5 {[%clk 0:00:09]} 47... a6 {[%clk 0:00:07.2]} 48. Be3 {[%clk 0:00:09.9]}
48... Ka8 {[%clk 0:00:06.1]} 49. Kb6 {[%clk 0:00:10.2]} 49... Kb8 {[%clk
0:00:06.1]} 50. Bf4+ {[%clk 0:00:10.6]} 50... Ka8 {[%clk 0:00:06.5]} 51. a3
{[%clk 0:00:10.1]} 51... a5 {[%clk 0:00:05.1]} 52. Bd2 {[%clk 0:00:10.4]} 52...
a4 {[%clk 0:00:04.7]} 53. Ka6 {[%clk 0:00:11.3]} 53... Kb8 {[%clk 0:00:05]} 54.
Ba5 {[%clk 0:00:11.2]} 54... Ka8 {[%clk 0:00:05.5]} 55. Bb6 {[%clk 0:00:11.9]}
55... Kb8 {[%clk 0:00:05.9]} 56. Kb5 {[%clk 0:00:12.8]} 56... Ka8 {[%clk
0:00:06.3]} 57. Kb4 {[%clk 0:00:12.8]} 57... Kb8 {[%clk 0:00:06.9]} 58. Be3
{[%clk 0:00:09]} 58... Ka8 {[%clk 0:00:07.4]} 59. Bf4 {[%clk 0:00:09.9]} 59...
Kb7 {[%clk 0:00:07.4]} 60. Kc5 {[%clk 0:00:10.1]} 60... Ka8 {[%clk 0:00:07.9]}
61. Kd6 {[%clk 0:00:10.4]} 61... Kb7 {[%clk 0:00:08.4]} 62. Kd7 {[%clk
0:00:11.1]} 62... Ka8 {[%clk 0:00:08.9]} 63. Bd6 {[%clk 0:00:11.4]} 63... Ka7
{[%clk 0:00:09.1]} 64. Kc8 {[%clk 0:00:11.9]} 64... Ka8 {[%clk 0:00:09.3]} 65.
Be7 {[%clk 0:00:10.6]} 65... Ka7 {[%clk 0:00:09.5]} 66. Bc5+ {[%clk 0:00:10.7]}
66... Ka8 {[%clk 0:00:09.8]} 67. Bd6 {[%clk 0:00:11.2]} 67... Ka7 {[%clk
0:00:10.1]} 68. Bb8+ {[%clk 0:00:10.3]} 68... Ka8 {[%clk 0:00:09.4]} 69. Bh2
{[%clk 0:00:10.4]} 69... Ka7 {[%clk 0:00:09.8]} 70. Bc7 {[%clk 0:00:10.8]} 70...
Ka8 {[%clk 0:00:10.2]} 71. Be5 {[%clk 0:00:11.4]} 71... Ka7 {[%clk 0:00:10.6]}
72. Kd7 {[%clk 0:00:12.3]} 72... Ka8 {[%clk 0:00:10.9]} 73. Kc6 {[%clk 0:00:11]}
73... Ka7 {[%clk 0:00:11]} 74. Kb5 {[%clk 0:00:08.7]} 74... Ka8 {[%clk
0:00:11.4]} 75. Kxa4 {[%clk 0:00:09.4]} 75... Ka7 {[%clk 0:00:11.8]} 76. Kb5
{[%clk 0:00:10.3]} 76... Ka8 {[%clk 0:00:11.9]} 77. a4 {[%clk 0:00:11.2]} 77...
Ka7 {[%clk 0:00:12.2]} 78. a5 {[%clk 0:00:12.1]} 78... Ka8 {[%clk 0:00:12.4]}
79. a6 {[%clk 0:00:13]} 79... Ka7 {[%clk 0:00:12.6]} 80. Bd4+ {[%clk 0:00:10.3]}
80... Ka8 {[%clk 0:00:12.6]} 81. a7 {[%clk 0:00:11.2]} 81... Kb7 {[%clk
0:00:12]} 82. a8=Q+ {[%clk 0:00:12.1]} 82... Kxa8 {[%clk 0:00:12.3]} 1/2-1/2

[Event "Early-Titled-Tuesday-Blitz-April-23-2024"]
[Site "Chess.com"]
[Date "2024.04.23"]
[Round "9"]
[White "inagreV"]
[Black "marcodobrikov"]
[Result "0-1"]
[WhiteElo "2414"]
[BlackElo "2702"]
[TimeControl "180+1"]
[EndTime "9:50:54 PDT"]
[Termination "marcodobrikov won by resignation"]

1. e4 {[%clk 0:03:00.9]} 1... a6 {[%clk 0:03:00.1]} 2. d4 {[%clk 0:03:00.8]}
2... b5 {[%clk 0:03:00.5]} 3. Nf3 {[%clk 0:03:01]} 3... g6 {[%clk 0:03:00.6]} 4.
a4 {[%clk 0:03:00]} 4... b4 {[%clk 0:03:00]} 5. Bc4 {[%clk 0:02:58.6]} 5... Bg7
{[%clk 0:02:59.5]} 6. O-O {[%clk 0:02:58.1]} 6... Bb7 {[%clk 0:02:59.5]} 7. Qe2
{[%clk 0:02:56.6]} 7... e6 {[%clk 0:02:59.5]} 8. d5 {[%clk 0:02:53.4]} 8... Ne7
{[%clk 0:02:55.1]} 9. Rd1 {[%clk 0:02:44.6]} 9... e5 {[%clk 0:02:55.3]} 10. d6
{[%clk 0:02:44.1]} 10... cxd6 {[%clk 0:02:55.8]} 11. Rxd6 {[%clk 0:02:37.3]}
11... Qc7 {[%clk 0:02:56]} 12. Rd1 {[%clk 0:02:37]} 12... O-O {[%clk 0:02:55.4]}
13. Bg5 {[%clk 0:02:34]} 13... d6 {[%clk 0:02:50.2]} 14. Nbd2 {[%clk 0:02:29.3]}
14... Nbc6 {[%clk 0:02:47.2]} 15. c3 {[%clk 0:02:21.5]} 15... bxc3 {[%clk
0:02:35.6]} 16. bxc3 {[%clk 0:02:21.4]} 16... h6 {[%clk 0:02:34.3]} 17. Bxe7
{[%clk 0:02:16]} 17... Nxe7 {[%clk 0:02:32.9]} 18. Rab1 {[%clk 0:02:13.5]} 18...
d5 {[%clk 0:02:26.5]} 19. exd5 {[%clk 0:02:12.7]} 19... Bxd5 {[%clk 0:02:27.4]}
20. Bxa6 {[%clk 0:02:04.2]} 20... Qxc3 {[%clk 0:02:24.6]} 21. Bb5 {[%clk
0:02:00.1]} 21... Nf5 {[%clk 0:01:31.8]} 22. Ne4 {[%clk 0:01:52.8]} 22... Bxe4
{[%clk 0:01:23.7]} 23. Qxe4 {[%clk 0:01:52.1]} 23... Nd4 {[%clk 0:01:20.8]} 24.
Nxe5 {[%clk 0:01:29.9]} 24... Bxe5 {[%clk 0:01:20.1]} 25. Rbc1 {[%clk
0:01:25.3]} 25... Nxb5 {[%clk 0:01:08.1]} 26. axb5 {[%clk 0:01:17.9]} 26... Qb2
{[%clk 0:01:02.1]} 27. Rc2 {[%clk 0:01:08.8]} 27... Qxb5 {[%clk 0:00:58.3]} 28.
Rcd2 {[%clk 0:00:57.3]} 28... Bf6 {[%clk 0:00:51.9]} 29. Rd6 {[%clk 0:00:55.4]}
29... Rae8 {[%clk 0:00:40.9]} 30. Qf3 {[%clk 0:00:47.2]} 30... Be5 {[%clk
0:00:40.2]} 31. R6d5 {[%clk 0:00:45.9]} 31... Qb8 {[%clk 0:00:38.8]} 32. h4
{[%clk 0:00:43.3]} 32... h5 {[%clk 0:00:37.9]} 33. Rd7 {[%clk 0:00:41]} 33...
Rd8 {[%clk 0:00:37.3]} 34. g3 {[%clk 0:00:36.2]} 34... Rxd7 {[%clk 0:00:37.1]}
35. Rxd7 {[%clk 0:00:37.1]} 35... Kg7 {[%clk 0:00:34.7]} 36. Qe3 {[%clk
0:00:31.5]} 36... Bf6 {[%clk 0:00:33.9]} 37. Rd1 {[%clk 0:00:30.3]} 37... Qe5
{[%clk 0:00:33.4]} 38. Qb3 {[%clk 0:00:27.7]} 38... Rd8 {[%clk 0:00:32.8]} 39.
Rb1 {[%clk 0:00:26.2]} 39... Qf5 {[%clk 0:00:29.6]} 40. Rd1 {[%clk 0:00:18.2]}
40... Bd4 {[%clk 0:00:26.6]} 41. Rd2 {[%clk 0:00:16.4]} 41... Bf6 {[%clk
0:00:23.4]} 42. Re2 {[%clk 0:00:15.8]} 42... Rd4 {[%clk 0:00:18.5]} 43. Qe3
{[%clk 0:00:14.5]} 43... Rd1+ {[%clk 0:00:18]} 44. Kg2 {[%clk 0:00:13.1]} 44...
Rd6 {[%clk 0:00:18]} 45. Kh2 {[%clk 0:00:12.8]} 45... Re6 {[%clk 0:00:18.5]} 46.
Qd2 {[%clk 0:00:11.3]} 46... Rxe2 {[%clk 0:00:19.2]} 47. Qxe2 {[%clk 0:00:12.2]}
47... Bd4 {[%clk 0:00:19.3]} 48. Kg2 {[%clk 0:00:12.4]} 48... Qe5 {[%clk
0:00:19.2]} 49. Qd3 {[%clk 0:00:11.4]} 49... Qd5+ {[%clk 0:00:19.3]} 50. Kf1
{[%clk 0:00:10.4]} 50... Kf6 {[%clk 0:00:19]} 51. Qd2 {[%clk 0:00:06.3]} 51...
Ke6 {[%clk 0:00:16.3]} 52. Qe2+ {[%clk 0:00:06]} 52... Be5 {[%clk 0:00:16]} 53.
Qc2 {[%clk 0:00:04.6]} 53... Kd6 {[%clk 0:00:12.7]} 54. Qa4 {[%clk 0:00:04.2]}
54... Kc5 {[%clk 0:00:11.7]} 55. Qa5+ {[%clk 0:00:04.5]} 55... Kd4 {[%clk
0:00:12.1]} 56. Qd2+ {[%clk 0:00:04.9]} 56... Kc4 {[%clk 0:00:12.4]} 57. Qc2+
{[%clk 0:00:05.1]} 57... Bc3 {[%clk 0:00:12.2]} 58. Qa4+ {[%clk 0:00:05.8]}
58... Kc5 {[%clk 0:00:11.7]} 59. Qa3+ {[%clk 0:00:06.5]} 59... Bb4 {[%clk
0:00:11.5]} 60. Qe3+ {[%clk 0:00:07.2]} 60... Qd4 {[%clk 0:00:11.5]} 61. Qe7+
{[%clk 0:00:07.9]} 61... Kb5 {[%clk 0:00:11]} 62. Qe8+ {[%clk 0:00:07.1]} 62...
Kc5 {[%clk 0:00:08.7]} 63. Qf8+ {[%clk 0:00:05]} 63... Kc6 {[%clk 0:00:08.1]}
64. Qxf7 {[%clk 0:00:04.7]} 64... Qd1+ {[%clk 0:00:08.2]} 65. Kg2 {[%clk
0:00:04.9]} 65... Qd5+ {[%clk 0:00:08.7]} 66. Qxd5+ {[%clk 0:00:05.4]} 66...
Kxd5 {[%clk 0:00:09.1]} 67. g4 {[%clk 0:00:04.5]} 67... hxg4 {[%clk 0:00:08.1]}
68. Kg3 {[%clk 0:00:04.9]} 68... Ke5 {[%clk 0:00:05]} 69. Kxg4 {[%clk
0:00:05.2]} 69... Bd2 {[%clk 0:00:03.4]} 70. f3 {[%clk 0:00:01.8]} 70... Bf4
{[%clk 0:00:02.8]} 71. h5 {[%clk 0:00:01.5]} 71... g5 {[%clk 0:00:03.1]} 72. h6
{[%clk 0:00:02]} 72... Kf6 {[%clk 0:00:03.5]} 73. Kh5 {[%clk 0:00:02.1]} 73...
Kf7 {[%clk 0:00:04.1]} 74. Kg4 {[%clk 0:00:01.4]} 74... Kg6 {[%clk 0:00:04.4]}
75. Kh3 {[%clk 0:00:02.1]} 75... Kxh6 {[%clk 0:00:05]} 76. Kg2 {[%clk
0:00:02.6]} 76... Kh5 {[%clk 0:00:05.4]} 0-1

[Event "Early-Titled-Tuesday-Blitz-April-23-2024"]
[Site "Chess.com"]
[Date "2024.04.23"]
[Round "9"]
[White "Grischuk"]
[Black "h4parah5"]
[Result "1-0"]
[WhiteElo "3078"]
[BlackElo "3024"]
[TimeControl "180+1"]
[EndTime "9:50:55 PDT"]
[Termination "Grischuk won by resignation"]

1. d4 {[%clk 0:03:00.9]} 1... Nf6 {[%clk 0:02:58.8]} 2. c4 {[%clk 0:03:00.9]}
2... e6 {[%clk 0:02:58.6]} 3. Bg5 {[%clk 0:03:00.6]} 3... h6 {[%clk 0:02:57]} 4.
Bh4 {[%clk 0:03:00.7]} 4... d5 {[%clk 0:02:49.4]} 5. e3 {[%clk 0:02:59.7]} 5...
Be7 {[%clk 0:02:48.9]} 6. Nc3 {[%clk 0:02:59]} 6... O-O {[%clk 0:02:47.4]} 7.
Qc2 {[%clk 0:02:59.2]} 7... Nbd7 {[%clk 0:02:46.2]} 8. cxd5 {[%clk 0:02:58.4]}
8... exd5 {[%clk 0:02:44.9]} 9. Bd3 {[%clk 0:02:56.3]} 9... Re8 {[%clk
0:02:42.1]} 10. Nf3 {[%clk 0:02:39.3]} 10... c6 {[%clk 0:02:32.7]} 11. O-O
{[%clk 0:02:38.7]} 11... Ne4 {[%clk 0:02:29.5]} 12. Bxe4 {[%clk 0:02:37.7]}
12... Bxh4 {[%clk 0:02:22.5]} 13. Bh7+ {[%clk 0:02:38.6]} 13... Kh8 {[%clk
0:02:21.1]} 14. Bd3 {[%clk 0:02:38.2]} 14... Be7 {[%clk 0:02:20.4]} 15. Rae1
{[%clk 0:02:31.9]} 15... Kg8 {[%clk 0:02:12.4]} 16. h3 {[%clk 0:02:30.2]} 16...
Bf8 {[%clk 0:02:10.6]} 17. Bh7+ {[%clk 0:02:09.8]} 17... Kh8 {[%clk 0:02:09.9]}
18. Bd3 {[%clk 0:02:10.7]} 18... Kg8 {[%clk 0:02:09.6]} 19. a3 {[%clk
0:02:03.9]} 19... a5 {[%clk 0:02:06.3]} 20. Bh7+ {[%clk 0:01:55.8]} 20... Kh8
{[%clk 0:02:06.3]} 21. Bd3 {[%clk 0:01:56.7]} 21... Kg8 {[%clk 0:02:06.2]} 22.
Re2 {[%clk 0:01:32.9]} 22... b5 {[%clk 0:01:44.7]} 23. Rc1 {[%clk 0:01:22.3]}
23... Rb8 {[%clk 0:01:35.1]} 24. Qd1 {[%clk 0:01:00.5]} 24... Bb7 {[%clk
0:01:23.8]} 25. Rec2 {[%clk 0:00:52.8]} 25... Nb6 {[%clk 0:01:14]} 26. Ne2
{[%clk 0:00:32.8]} 26... Nc4 {[%clk 0:01:09.2]} 27. a4 {[%clk 0:00:30.5]} 27...
Rc8 {[%clk 0:00:56.8]} 28. b3 {[%clk 0:00:19.7]} 28... Nd6 {[%clk 0:00:46]} 29.
Nf4 {[%clk 0:00:16.4]} 29... b4 {[%clk 0:00:37.9]} 30. Ne5 {[%clk 0:00:12.2]}
30... Qb6 {[%clk 0:00:28.1]} 31. Nd7 {[%clk 0:00:11]} 31... Qd8 {[%clk
0:00:27.6]} 32. Nxf8 {[%clk 0:00:10.9]} 32... Rxf8 {[%clk 0:00:27.8]} 33. Rc5
{[%clk 0:00:11]} 33... Re8 {[%clk 0:00:27.8]} 34. Qg4 {[%clk 0:00:10]} 34... Kh8
{[%clk 0:00:23.4]} 35. Nh5 {[%clk 0:00:07.4]} 35... Rg8 {[%clk 0:00:22.9]} 36.
Ng3 {[%clk 0:00:07.5]} 36... Ra8 {[%clk 0:00:21.1]} 37. Qf4 {[%clk 0:00:05.7]}
37... Qe7 {[%clk 0:00:20.2]} 38. Nf5 {[%clk 0:00:05.7]} 38... Nxf5 {[%clk
0:00:20.1]} 39. Qxf5 {[%clk 0:00:06]} 39... g6 {[%clk 0:00:20.2]} 40. Qf4 {[%clk
0:00:06.7]} 40... Kg7 {[%clk 0:00:20.4]} 41. h4 {[%clk 0:00:06.9]} 41... Rgd8
{[%clk 0:00:19.5]} 42. g3 {[%clk 0:00:06]} 42... Rd6 {[%clk 0:00:19]} 43. Qe5+
{[%clk 0:00:05.9]} 43... Qxe5 {[%clk 0:00:17.1]} 44. dxe5 {[%clk 0:00:06.8]}
44... Rd7 {[%clk 0:00:17.7]} 45. f4 {[%clk 0:00:06]} 45... h5 {[%clk 0:00:17.9]}
46. Kf2 {[%clk 0:00:06]} 46... f5 {[%clk 0:00:17.4]} 47. Ke2 {[%clk 0:00:05.9]}
47... Kf7 {[%clk 0:00:17.4]} 48. Kd2 {[%clk 0:00:05.9]} 48... Ke6 {[%clk
0:00:17.9]} 49. Bc2 {[%clk 0:00:04.4]} 49... Re7 {[%clk 0:00:16.8]} 50. Kd3
{[%clk 0:00:04.5]} 50... Kd7 {[%clk 0:00:17.3]} 51. Kd4 {[%clk 0:00:04.8]} 51...
Re6 {[%clk 0:00:17.6]} 52. Bd3 {[%clk 0:00:04.9]} 52... Re7 {[%clk 0:00:18]} 53.
R1c2 {[%clk 0:00:04.1]} 53... Ra7 {[%clk 0:00:18.2]} 54. Be2 {[%clk 0:00:04.3]}
54... Ra8 {[%clk 0:00:18.5]} 55. Rc1 {[%clk 0:00:04.6]} 55... Ra7 {[%clk
0:00:18.9]} 56. Bf3 {[%clk 0:00:04.9]} 56... Ra8 {[%clk 0:00:19.2]} 57. R1c2
{[%clk 0:00:05.1]} 57... Re6 {[%clk 0:00:18.4]} 58. Bxd5 {[%clk 0:00:04]} 58...
Rd8 {[%clk 0:00:15.9]} 59. e4 {[%clk 0:00:03]} 59... Ke8 {[%clk 0:00:15.1]} 60.
Ke3 {[%clk 0:00:02.5]} 60... cxd5 {[%clk 0:00:14.6]} 61. exf5 {[%clk 0:00:02.4]}
61... d4+ {[%clk 0:00:14.4]} 62. Kd2 {[%clk 0:00:02.8]} 62... gxf5 {[%clk
0:00:14.6]} 63. Rxa5 {[%clk 0:00:02.9]} 63... Be4 {[%clk 0:00:14.6]} 64. Rc7
{[%clk 0:00:03]} 64... Rg6 {[%clk 0:00:14.9]} 65. Raa7 {[%clk 0:00:02.5]} 65...
Rxg3 {[%clk 0:00:14.7]} 66. Rh7 {[%clk 0:00:02.7]} 66... Rg2+ {[%clk 0:00:14.9]}
67. Ke1 {[%clk 0:00:03.1]} 67... Rg1+ {[%clk 0:00:15]} 68. Kd2 {[%clk
0:00:03.3]} 68... Rg2+ {[%clk 0:00:15.4]} 69. Ke1 {[%clk 0:00:03.7]} 69... Kf8
{[%clk 0:00:14.9]} 70. Rh8+ {[%clk 0:00:02.5]} 70... Rg8 {[%clk 0:00:14.5]} 71.
Rh6 {[%clk 0:00:02.4]} 71... Rg1+ {[%clk 0:00:14]} 72. Kf2 {[%clk 0:00:02.4]}
72... Rg2+ {[%clk 0:00:14.4]} 73. Kf1 {[%clk 0:00:03]} 73... d3 {[%clk 0:00:15]}
74. Rh8+ {[%clk 0:00:02]} 74... Rg8 {[%clk 0:00:14.6]} 75. Rhh7 {[%clk
0:00:02.9]} 75... Rg1+ {[%clk 0:00:13.9]} 76. Kxg1 {[%clk 0:00:03]} 76... Kg8
{[%clk 0:00:09.7]} 77. Rag7+ {[%clk 0:00:02.9]} 77... Kf8 {[%clk 0:00:10.2]} 78.
Rd7 {[%clk 0:00:02.9]} 1-0

[Event "Early-Titled-Tuesday-Blitz-April-23-2024"]
[Site "Chess.com"]
[Date "2024.04.23"]
[Round "9"]
[White "ChristianArca"]
[Black "jakopogi"]
[Result "1/2-1/2"]
[WhiteElo "2650"]
[BlackElo "2793"]
[TimeControl "180+1"]
[EndTime "9:50:59 PDT"]
[Termination "Game drawn by repetition"]

1. d4 {[%clk 0:02:56.9]} 1... Nf6 {[%clk 0:02:54.7]} 2. c4 {[%clk 0:02:51.6]}
2... e5 {[%clk 0:02:52.7]} 3. dxe5 {[%clk 0:02:51.2]} 3... Ng4 {[%clk
0:02:53.1]} 4. Bf4 {[%clk 0:02:51.8]} 4... Nc6 {[%clk 0:02:53.4]} 5. Nf3 {[%clk
0:02:51.5]} 5... Bb4+ {[%clk 0:02:53.7]} 6. Nbd2 {[%clk 0:02:49.9]} 6... Qe7
{[%clk 0:02:53.9]} 7. a3 {[%clk 0:02:38.7]} 7... Ngxe5 {[%clk 0:02:53.7]} 8.
Nxe5 {[%clk 0:02:39.6]} 8... Nxe5 {[%clk 0:02:52.9]} 9. e3 {[%clk 0:02:38.8]}
9... Bxd2+ {[%clk 0:02:49.1]} 10. Qxd2 {[%clk 0:02:39.7]} 10... d6 {[%clk
0:02:49.9]} 11. Be2 {[%clk 0:02:38.1]} 11... O-O {[%clk 0:02:47]} 12. O-O {[%clk
0:02:37.9]} 12... b6 {[%clk 0:02:37.4]} 13. b4 {[%clk 0:01:53.2]} 13... Bb7
{[%clk 0:02:34.6]} 14. Rac1 {[%clk 0:01:53.8]} 14... Nd7 {[%clk 0:02:34.8]} 15.
Qb2 {[%clk 0:01:45.8]} 15... Rae8 {[%clk 0:02:10.9]} 16. Rfd1 {[%clk 0:01:42.6]}
16... f5 {[%clk 0:02:09.5]} 17. c5 {[%clk 0:00:46]} 17... dxc5 {[%clk
0:01:31.6]} 18. Bxc7 {[%clk 0:00:44.8]} 18... f4 {[%clk 0:01:29.4]} 19. Bg4
{[%clk 0:00:19.3]} 19... fxe3 {[%clk 0:01:21]} 20. f4 {[%clk 0:00:14.2]} 20...
Nf6 {[%clk 0:00:26.3]} 21. Bd6 {[%clk 0:00:13.3]} 21... Qf7 {[%clk 0:00:25.5]}
22. Be2 {[%clk 0:00:12.5]} 22... Qg6 {[%clk 0:00:25.9]} 23. Bc4+ {[%clk
0:00:12.1]} 23... Rf7 {[%clk 0:00:24.1]} 24. Rc2 {[%clk 0:00:10.2]} 24... Ne4
{[%clk 0:00:18]} 25. bxc5 {[%clk 0:00:09.7]} 25... Rd8 {[%clk 0:00:08.3]} 26.
Qa2 {[%clk 0:00:06.4]} 26... Nd2 {[%clk 0:00:07]} 27. Bxf7+ {[%clk 0:00:06.1]}
27... Qxf7 {[%clk 0:00:07.7]} 28. Qxf7+ {[%clk 0:00:07]} 28... Kxf7 {[%clk
0:00:08.6]} 29. Re1 {[%clk 0:00:05.1]} 29... bxc5 {[%clk 0:00:08.4]} 30. Bxc5
{[%clk 0:00:06]} 30... Ne4 {[%clk 0:00:03.7]} 31. Bxe3 {[%clk 0:00:05.9]} 31...
Rd7 {[%clk 0:00:02.5]} 32. Bxa7 {[%clk 0:00:06.5]} 32... Nf6 {[%clk 0:00:02.9]}
33. Bb6 {[%clk 0:00:06.1]} 33... Nd5 {[%clk 0:00:02.9]} 34. Bc5 {[%clk
0:00:05.2]} 34... Nxf4 {[%clk 0:00:01.5]} 35. Rf2 {[%clk 0:00:05.6]} 35... g5
{[%clk 0:00:02.3]} 36. g3 {[%clk 0:00:06.2]} 36... Rd5 {[%clk 0:00:03]} 37. Be3
{[%clk 0:00:05.6]} 37... Kg6 {[%clk 0:00:02]} 38. gxf4 {[%clk 0:00:06.1]} 38...
gxf4 {[%clk 0:00:02.9]} 39. Bxf4 {[%clk 0:00:06.8]} 39... Rd3 {[%clk 0:00:03.2]}
40. a4 {[%clk 0:00:05.9]} 40... Ra3 {[%clk 0:00:02.6]} 41. Rb2 {[%clk
0:00:05.5]} 41... Bd5 {[%clk 0:00:02.4]} 42. Rb6+ {[%clk 0:00:05.7]} 42... Kf5
{[%clk 0:00:02.7]} 43. Rb5 {[%clk 0:00:05.5]} 43... Kxf4 {[%clk 0:00:01.8]} 44.
Rxd5 {[%clk 0:00:06.1]} 44... Rxa4 {[%clk 0:00:02.7]} 45. Rh5 {[%clk 0:00:06.3]}
45... Kg4 {[%clk 0:00:02.6]} 46. Rxh7 {[%clk 0:00:06.1]} 46... Ra2 {[%clk
0:00:02.9]} 47. Rg7+ {[%clk 0:00:06.3]} 47... Kh3 {[%clk 0:00:02.3]} 48. Rg3+
{[%clk 0:00:06.8]} 48... Kh4 {[%clk 0:00:02.8]} 49. Re4+ {[%clk 0:00:07.7]}
49... Kh5 {[%clk 0:00:03.6]} 50. Rf3 {[%clk 0:00:07.7]} 50... Kg5 {[%clk
0:00:03.8]} 51. Rf2 {[%clk 0:00:07.8]} 51... Ra1+ {[%clk 0:00:03.7]} 52. Kg2
{[%clk 0:00:08.3]} 52... Ra3 {[%clk 0:00:04.6]} 53. h4+ {[%clk 0:00:08.5]} 53...
Kg6 {[%clk 0:00:05.4]} 54. Rf5 {[%clk 0:00:09.2]} 54... Kxf5 {[%clk 0:00:05.3]}
55. Rb4 {[%clk 0:00:08]} 55... Rc3 {[%clk 0:00:05.5]} 56. Kh2 {[%clk 0:00:06.5]}
56... Ra3 {[%clk 0:00:03.9]} 57. Kg2 {[%clk 0:00:06.4]} 57... Rc3 {[%clk
0:00:04.3]} 58. Kh2 {[%clk 0:00:05]} 58... Ra3 {[%clk 0:00:04.6]} 59. Kg1 {[%clk
0:00:04.4]} 59... Rc3 {[%clk 0:00:04.8]} 60. Ra4 {[%clk 0:00:04.9]} 60... Rg3+
{[%clk 0:00:05]} 61. Kh2 {[%clk 0:00:05.1]} 61... Rg4 {[%clk 0:00:05.6]} 62.
Ra5+ {[%clk 0:00:05.1]} 62... Kf4 {[%clk 0:00:06.3]} 63. Kh3 {[%clk 0:00:05.4]}
63... Rg3+ {[%clk 0:00:06.7]} 64. Kh2 {[%clk 0:00:05.8]} 64... Rg4 {[%clk
0:00:07.3]} 65. Ra4+ {[%clk 0:00:02]} 65... Kf5 {[%clk 0:00:07.3]} 66. Ra5+
{[%clk 0:00:02.6]} 66... Kf4 {[%clk 0:00:08]} 1/2-1/2